fUSD/lending_fUSD_20260319
["ID","MTS","AMOUNT","RATE_DAILY","PERIOD"]
[408593519,1773907838778,-500.0,9.873e-05,2]
[408593521,1773907838788,-500.0,9.873e-05,2]
[408593523,1773907838797,-500.2027226,9.873e-05,2]
[408593525,1773907838807,-167.41696439,9.873e-05,2]
[408593527,1773907838822,-164.94931012,9.873e-05,2]
[408593529,1773907838831,-501.00729745,9.873e-05,2]
[408593531,1773907838840,-164.13740161,9.873e-05,2]
[408593533,1773907838849,-167.36781104,9.873e-05,2]
[408593535,1773907838859,-500.0,9.873e-05,2]
[408593537,1773907838868,-500.0,9.873e-05,2]
[408593538,1773907838879,-330.27589958,9.885e-05,2]
[408593541,1773907838889,-1000.0,9.888e-05,2]
[408593542,1773907838899,-17422.72796421,9.889e-05,2]
[408593543,1773907838908,-547.47427654,9.897e-05,2]
[408593544,1773907838918,-500.0,9.898e-05,2]
[408593545,1773907838927,-500.0,9.898e-05,2]
[408593546,1773907838937,-150.0,9.898e-05,2]
[408593547,1773907838946,-500.0,9.898e-05,2]
[408593548,1773907838955,-150.0,9.898e-05,7]
[408593549,1773907838964,-500.0,9.898e-05,2]
[408593550,1773907838973,-500.0,9.898e-05,2]
[408593551,1773907838983,-500.0,9.898e-05,2]
[408593552,1773907838993,-500.0,9.898e-05,2]
[408593553,1773907839002,-213.19819377,9.898e-05,2]
[408593554,1773907839012,-150.99,9.898e-05,2]
[408593555,1773907839021,-1547.13,9.898e-05,2]
[408593556,1773907839034,-9999.99,9.898e-05,2]
[408593557,1773907839050,-330.27589958,9.898e-05,2]
[408593558,1773907839060,-789.69,9.898e-05,2]
[408593559,1773907839070,-85249.6,9.898e-05,2]
[408593560,1773907839080,-299.99,9.898e-05,2]
[408593561,1773907839091,-4999.99,9.898e-05,2]
[408593562,1773907839100,-9999.99,9.898e-05,2]
[408593563,1773907839110,-937.41,9.898e-05,2]
[408593564,1773907839119,-9999.99,9.898e-05,2]
[408593565,1773907839129,-150.99,9.898e-05,2]
[408593566,1773907839138,-999.99,9.898e-05,2]
[408593567,1773907839147,-494.06954945,9.899e-05,2]
[408593568,1773907839157,-500.0,9.899e-05,2]
[408593570,1773907839166,-150.0,9.9e-05,2]
[408593572,1773907839176,-1500.0,9.9e-05,3]
[408593574,1773907839185,-153.25761504,9.995e-05,2]
[408593576,1773907839195,-1819.44614226,0.0001,2]
[408593578,1773907839205,-4446.15085842,0.0001,2]
[408593580,1773907839214,-165.92428065,0.0001,2]
[408593582,1773907839224,-197.81437458,0.0001,2]
[408593584,1773907839233,-192.15088411,0.0001,2]
[408593586,1773907839242,-201.01010685,0.0001,2]
[408593588,1773907839252,-2000.0,0.0001,3]
[408593590,1773907839261,-500.0,0.0001,2]
[408593592,1773907839271,-500.0,0.0001,2]
[408593594,1773907839280,-500.0,0.0001,2]
[408593596,1773907839290,-500.0,0.0001,2]
[408593598,1773907839299,-500.0,0.0001,2]
[408593600,1773907839310,-500.0,0.0001,2]
[408593602,1773907839319,-500.0,0.0001,2]
[408593604,1773907839329,-500.0,0.0001,2]
[408593606,1773907839338,-500.0,0.0001,2]
[408593608,1773907839347,-253.66754111,0.0001,2]
[408593610,1773907839356,-151.0,0.0001,2]
[408593612,1773907839365,-151.0,0.0001,2]
[408593614,1773907839374,-151.0,0.0001,2]
[408593616,1773907839382,-200.0,0.0001,2]
[408593618,1773907839391,-151.0,0.0001,2]
[408593620,1773907839401,-151.0,0.0001,2]
[408593622,1773907839410,-151.0,0.0001,2]
[408593624,1773907839419,-151.0,0.0001,2]
[408593626,1773907839428,-151.0,0.0001,2]
[408593628,1773907839437,-151.0,0.0001,2]
[408593630,1773907839446,-151.0,0.0001,2]
[408593632,1773907839456,-151.0,0.0001,2]
[408593634,1773907839466,-151.0,0.0001,2]
[408593636,1773907839478,-151.0,0.0001,2]
[408593638,1773907839489,-151.0,0.0001,2]
[408593640,1773907839499,-151.0,0.0001,2]
[408593642,1773907839509,-151.0,0.0001,2]
[408593644,1773907839518,-151.0,0.0001,2]
[408593646,1773907839527,-151.0,0.0001,2]
[408593648,1773907839536,-151.0,0.0001,2]
[408593650,1773907839545,-151.0,0.0001,2]
[408593652,1773907839554,-151.0,0.0001,2]
[408593654,1773907839564,-151.0,0.0001,2]
[408593656,1773907839573,-151.0,0.0001,2]
[408593658,1773907839582,-295.10239621,0.0001,2]
[408593660,1773907839592,-343.80295362,0.0001,2]
[408593662,1773907839602,-514.92443713,0.0001,2]
[408593664,1773907839611,-1000.0,0.00010421,2]
[408593666,1773907839620,-333.74740353,0.00010421,2]
[408593668,1773907839629,-1003.63793267,0.00010421,2]
[408593670,1773907839638,-500.4240839,0.00010421,2]
[408593672,1773907839647,-504.9390148,0.00010421,2]
[408593674,1773907839657,-1020.9482015,0.00010421,2]
[408593676,1773907839666,-500.0,0.00010421,2]
[408593678,1773907839675,-313.87862379,0.00010421,2]
[408593680,1773907839684,-343.80295362,0.00010512,2]
[408593682,1773907839694,-282563.96065794,0.00010522,2]
[408593685,1773907839707,-1185.97986445,0.00010522,2]
[408593688,1773907839728,-376650.0,0.00010522,2]
[408593690,1773907839739,-6665.71873839,0.00010522,2]
[408593695,1773907840346,-635.10899384,0.00010522,2]
[408593696,1773907840358,-1001.22178799,0.00010522,2]
[408593697,1773907840370,-556.06092196,0.00010522,2]
[408593698,1773907840876,-18881.08294345,0.00010522,2]
[408593699,1773907840890,-366.29123302,0.00010522,2]
[408593709,1773907843124,-322.94797957,0.00010522,2]
[408593710,1773907843135,-13004.1221778,0.00010522,2]
[408593964,1773907846186,-1000.0,0.00010522,2]
[408593966,1773907846198,-415.92513557,0.00010522,2]
[408593989,1773907846415,-375.16371793,0.00010522,2]
[408594405,1773908196573,425.1388,9.679e-05,2]
[408594406,1773908243287,1000.0,9.689e-05,2]
[408594407,1773908363193,500.0,9.679e-05,2]
[408594408,1773908405985,1000.0,9.689e-05,2]
[408594409,1773908425561,2214.6273,9.689e-05,2]
[408594411,1773908491049,161.085,9.593e-05,2]
[408594412,1773908491155,645.1397,9.593e-05,2]
[408594413,1773908491179,3574.6253,9.593e-05,2]
[408594414,1773908565152,1000.0,9.68e-05,2]
[408594416,1773908646710,171.39,9.532e-05,2]
[408594417,1773908654635,2000.0,9.468e-05,2]
[408594418,1773908709229,166.66,9.718e-05,2]
[408594419,1773908723063,1000.0,9.68e-05,2]
[408594421,1773908848836,2087.3347,9.752e-05,2]
[408594422,1773908848859,7912.6653,9.752e-05,2]
[408594423,1773908859046,2087.3447,9.752e-05,2]
[408594424,1773908859071,7912.6553,9.752e-05,2]
[408594425,1773908868222,2087.3547,9.678e-05,2]
[408594426,1773908868250,10000.01,9.678e-05,2]
[408594427,1773908868276,10000.01,9.678e-05,2]
[408594428,1773908868300,10000.01,9.678e-05,2]
[408594429,1773908868326,10000.01,9.678e-05,2]
[408594430,1773908868352,10000.01,9.678e-05,2]
[408594431,1773908868378,10000.01,9.678e-05,2]
[408594432,1773908868404,10000.01,9.678e-05,2]
[408594433,1773908868429,10000.01,9.678e-05,2]
[408594434,1773908868454,10000.01,9.678e-05,2]
[408594435,1773908881496,300.0,9.677e-05,2]
[408594436,1773908882013,1208.08309607,9.678e-05,2]
[408594437,1773908882089,253.43471266,9.678e-05,2]
[408594438,1773908887822,159.0,9.678e-05,3]
[408594439,1773908894567,8079.49219127,9.678e-05,2]
[408594440,1773908894591,1920.50780873,9.678e-05,2]
[408594441,1773908903694,8079.50219127,9.678e-05,2]
[408594442,1773908903716,1920.49780873,9.678e-05,2]
[408594443,1773908904135,30236.30166726,0.000134,30]
[408594444,1773908918341,594.0,9.678e-05,2]
[408594445,1773908927928,-3363.8731,9.678e-05,2]
[408594446,1773908928120,-10000.01,9.678e-05,2]
[408594447,1773908928243,-10000.01,9.678e-05,2]
[408594448,1773908928365,-10000.01,9.678e-05,2]
[408594449,1773908928515,-10000.01,9.678e-05,2]
[408594450,1773908928962,-10000.01,9.678e-05,2]
[408594451,1773908929072,-10000.01,9.678e-05,2]
[408594452,1773908929174,-10000.01,9.678e-05,2]
[408594453,1773908929284,-10000.01,9.678e-05,2]
[408594454,1773908929392,-10000.01,9.678e-05,2]
[408594456,1773908941225,300.0,9.677e-05,2]
[408594457,1773909001180,300.0,9.677e-05,2]
[408594458,1773909001212,1200.0,9.677e-05,2]
[408594459,1773909002676,150.0,9.677e-05,2]
[408594460,1773909002720,300.0,9.677e-05,2]
[408594461,1773909004483,230.0,9.678e-05,2]
[408594464,1773909032181,-2454.25531392,9.678e-05,2]
[408594469,1773909032258,-952.0,9.678e-05,2]
[408594470,1773909032337,-3669.97329859,9.678e-05,2]
[408594471,1773909032350,-1969.61424798,9.678e-05,2]
[408594506,1773909038491,-715.30453234,9.678e-05,2]
[408594507,1773909038503,-2304787.44480717,9.678e-05,2]
[408594508,1773909038512,-5000.0,9.679e-05,2]
[408594509,1773909038521,-990.82769875,9.68e-05,2]
[408594510,1773909038530,-1000.0,9.68e-05,2]
[408594511,1773909038540,-10000.0,9.752e-05,2]
[408594512,1773909038549,-250.0,9.769e-05,2]
[408594513,1773909038558,-5000.0,9.77e-05,2]
[408594514,1773909038567,-17422.72796421,9.77e-05,2]
[408594515,1773909038577,-1041.54382599,9.779e-05,2]
[408594516,1773909038586,-305215.54491274,9.78e-05,2]
[408594517,1773909038597,-504.40860803,9.78e-05,2]
[408594518,1773909038609,-691.58645727,9.78e-05,2]
[408594519,1773909038619,-2416.98873586,9.78e-05,2]
[408594521,1773909040703,-899.72188916,9.78e-05,2]
[408594522,1773909041182,-14464.31939694,9.78e-05,2]
[408594524,1773909041191,-500.0,9.788e-05,2]
[408594525,1773909041200,-153.25761504,9.788e-05,2]
[408594526,1773909041209,-500.0,9.788e-05,2]
[408594527,1773909041218,-326.5658586,9.788e-05,2]
[408594528,1773909041227,-500.0,9.788e-05,2]
[408594529,1773909041236,-500.0,9.788e-05,2]
[408594530,1773909041245,-500.0,9.788e-05,2]
[408594531,1773909041254,-500.0,9.788e-05,2]
[408594532,1773909041263,-500.0,9.788e-05,2]
[408594533,1773909041277,-500.0,9.788e-05,2]
[408594534,1773909041286,-500.0,9.788e-05,2]
[408594535,1773909041296,-500.0,9.788e-05,2]
[408594536,1773909041305,-500.0,9.788e-05,2]
[408594537,1773909041315,-500.0,9.788e-05,2]
[408594538,1773909041324,-500.0,9.788e-05,2]
[408594539,1773909041333,-500.0,9.788e-05,2]
[408594540,1773909041343,-500.0,9.788e-05,2]
[408594541,1773909041352,-500.0,9.788e-05,2]
[408594542,1773909041361,-500.0,9.788e-05,2]
[408594543,1773909041370,-500.0,9.788e-05,2]
[408594544,1773909041380,-500.0,9.788e-05,2]
[408594545,1773909041390,-500.0,9.788e-05,2]
[408594546,1773909041400,-418.69039529,9.788e-05,2]
[408594547,1773909041410,-500.0,9.788e-05,2]
[408594548,1773909041419,-500.0,9.788e-05,2]
[408594549,1773909041428,-434.04227265,9.788e-05,2]
[408594550,1773909041440,-65.95772735,9.788e-05,2]
[408594551,1773909041449,-500.0,9.788e-05,2]
[408594552,1773909041459,-500.0,9.788e-05,2]
[408594553,1773909041468,-259.03360509,9.788e-05,2]
[408594554,1773909041480,-240.96639491,9.788e-05,2]
[408594555,1773909041491,-500.0,9.788e-05,2]
[408594556,1773909041501,-500.0,9.788e-05,2]
[408594557,1773909041511,-500.0,9.788e-05,2]
[408594558,1773909041521,-500.0,9.788e-05,2]
[408594559,1773909041531,-500.0,9.788e-05,2]
[408594560,1773909041540,-500.0,9.788e-05,2]
[408594561,1773909041549,-500.0,9.788e-05,2]
[408594562,1773909041559,-500.0,9.788e-05,2]
[408594563,1773909041567,-500.0,9.788e-05,2]
[408594564,1773909041577,-500.0,9.788e-05,2]
[408594565,1773909041586,-500.0,9.788e-05,2]
[408594566,1773909041595,-500.0,9.788e-05,2]
[408594567,1773909041604,-400.0,9.788e-05,2]
[408594568,1773909041613,-379.33360509,9.788e-05,2]
[408594569,1773909041625,-120.66639491,9.788e-05,2]
[408594570,1773909041635,-500.0,9.788e-05,2]
[408594571,1773909041644,-500.0,9.788e-05,2]
[408594572,1773909041657,-242.56860336,9.788e-05,2]
[408594573,1773909041667,-9359.20823309,9.788e-05,2]
[408594585,1773909043399,-1000.0,9.68e-05,2]
[408594586,1773909043410,-640.78176691,9.788e-05,2]
[408594587,1773909043420,-19999.99,9.788e-05,2]
[408594588,1773909043430,-85249.6,9.788e-05,2]
[408594589,1773909043439,-4999.99,9.788e-05,2]
[408594590,1773909043449,-999.99,9.788e-05,2]
[408594591,1773909043458,-789.69,9.788e-05,2]
[408594592,1773909043468,-1547.13,9.788e-05,2]
[408594593,1773909043477,-1852.42,9.815e-05,2]
[408594594,1773909043490,-9999.99,9.815e-05,2]
[408594595,1773909043499,-9999.99,9.815e-05,2]
[408594596,1773909043508,-6130.42823307,9.815e-05,2]
[408594597,1773909043540,-1828.72090932,9.815e-05,2]
[408594598,1773909043552,-2040.84085761,9.815e-05,2]
[408594599,1773909043561,-150.99,9.815e-05,2]
[408594600,1773909043571,-299.99,9.815e-05,2]
[408594601,1773909043580,-227.97285334,0.0001,2]
[408594602,1773909043590,-355.47865438,0.0001,2]
[408594603,1773909043600,-399.49868289,0.0001,2]
[408594604,1773909043609,-383.17179275,0.0001,2]
[408594605,1773909043619,-150.99,0.0001,2]
[408594606,1773909043629,-500.0,0.0001,2]
[408594607,1773909043640,-500.0,0.0001,2]
[408594608,1773909043649,-3.82597855,0.0001,2]
[408594652,1773909046614,-496.17402145,0.0001,2]
[408594653,1773909046626,-305.3590638,0.0001,2]
[408594657,1773909072847,552.64652164,9.677e-05,2]
[408594658,1773909072891,500.0,9.677e-05,2]
[408594659,1773909073190,500.0,9.677e-05,2]
[408594660,1773909074302,159.53714315,9.677e-05,2]
[408594661,1773909074924,689.95811762,9.677e-05,2]
[408594662,1773909074976,689.95811762,9.677e-05,2]
[408594663,1773909075025,689.95811762,9.677e-05,2]
[408594664,1773909075065,689.95811762,9.677e-05,2]
[408594665,1773909075121,689.95811762,9.677e-05,2]
[408594666,1773909075166,689.95811762,9.677e-05,2]
[408594667,1773909075219,153.58276153,9.677e-05,2]
[408594668,1773909075255,689.95811762,9.677e-05,2]
[408594669,1773909075304,500.0,9.677e-05,2]
[408594670,1773909075344,324.53675034,9.677e-05,2]
[408594671,1773909075376,365.42136728,9.677e-05,2]
[408594672,1773909075404,500.0,9.677e-05,2]
[408594673,1773909075443,689.95811762,9.677e-05,2]
[408594674,1773909075483,500.0,9.677e-05,2]
[408594675,1773909075525,689.95811762,9.677e-05,2]
[408594676,1773909075569,689.95811762,9.677e-05,2]
[408594677,1773909075606,631.58737773,9.677e-05,2]
[408594678,1773909075826,689.95811762,9.677e-05,2]
[408594679,1773909075881,631.58737773,9.677e-05,2]
[408594680,1773909075931,631.58737773,9.677e-05,2]
[408594681,1773909075974,631.58737773,9.677e-05,2]
[408594682,1773909076239,631.58737773,9.677e-05,2]
[408594683,1773909076275,689.95811762,9.677e-05,2]
[408594684,1773909076311,689.95811762,9.677e-05,2]
[408594685,1773909076358,631.58737773,9.677e-05,2]
[408594686,1773909076408,631.58737773,9.677e-05,2]
[408594687,1773909076456,73.72828289,9.677e-05,2]
[408594688,1773909076486,557.85909484,9.677e-05,2]
[408594689,1773909076530,631.58737773,9.677e-05,2]
[408594690,1773909076569,689.95811762,9.677e-05,2]
[408594691,1773909076619,631.58737773,9.677e-05,2]
[408594692,1773909076665,631.58737773,9.677e-05,2]
[408594693,1773909076723,631.58737773,9.677e-05,2]
[408594694,1773909076760,631.58737773,9.677e-05,2]
[408594695,1773909076798,631.58737773,9.677e-05,2]
[408594696,1773909076838,631.58737773,9.677e-05,2]
[408594697,1773909076879,631.58737773,9.677e-05,2]
[408594698,1773909076922,631.58737773,9.677e-05,2]
[408594699,1773909076975,631.58737773,9.677e-05,2]
[408594700,1773909077023,631.58737773,9.677e-05,2]
[408594701,1773909077069,631.58737773,9.677e-05,2]
[408594702,1773909077120,631.58737773,9.677e-05,2]
[408594703,1773909077162,541.55687705,9.677e-05,2]
[408594704,1773909077193,90.03050068,9.677e-05,2]
[408594705,1773909077235,631.58737773,9.677e-05,2]
[408594706,1773909077275,631.58737773,9.677e-05,2]
[408594707,1773909077332,631.58737773,9.677e-05,2]
[408594708,1773909077385,631.58737773,9.677e-05,2]
[408594709,1773909077428,631.58737773,9.677e-05,2]
[408594710,1773909077486,631.58737773,9.677e-05,2]
[408594711,1773909077528,631.58737773,9.677e-05,2]
[408594712,1773909077588,631.58737773,9.677e-05,2]
[408594713,1773909077634,631.58737773,9.677e-05,2]
[408594714,1773909077682,631.58737773,9.677e-05,2]
[408594715,1773909077738,631.58737773,9.677e-05,2]
[408594716,1773909077789,631.58737773,9.677e-05,2]
[408594717,1773909077838,631.58737773,9.677e-05,2]
[408594718,1773909077886,631.58737773,9.677e-05,2]
[408594719,1773909077925,631.58737773,9.677e-05,2]
[408594720,1773909077965,436.16883337,9.677e-05,2]
[408594721,1773909077993,195.41854436,9.677e-05,2]
[408594722,1773909078032,631.58737773,9.677e-05,2]
[408594723,1773909078082,631.58737773,9.677e-05,2]
[408594724,1773909078122,631.58737773,9.677e-05,2]
[408594725,1773909078158,631.58737773,9.677e-05,2]
[408594726,1773909078205,631.58737773,9.677e-05,2]
[408594727,1773909078240,631.58737773,9.677e-05,2]
[408594728,1773909078302,631.58737773,9.677e-05,2]
[408594729,1773909078342,631.58737773,9.677e-05,2]
[408594730,1773909078381,631.58737773,9.677e-05,2]
[408594731,1773909078419,631.58737773,9.677e-05,2]
[408594732,1773909078453,631.58737773,9.677e-05,2]
[408594733,1773909121230,300.0,9.679e-05,2]
[408594734,1773909131989,150.0,9.677e-05,2]
[408594735,1773909132022,510.96353484,9.677e-05,2]
[408594736,1773909132067,660.96353484,9.677e-05,2]
[408594737,1773909132118,660.96353484,9.677e-05,2]
[408594738,1773909132179,660.96353484,9.677e-05,2]
[408594739,1773909132221,660.96353484,9.677e-05,2]
[408594740,1773909132257,660.96353484,9.677e-05,2]
[408594741,1773909132306,660.96353484,9.677e-05,2]
[408594742,1773909132342,660.96353484,9.677e-05,2]
[408594743,1773909132377,660.96353484,9.677e-05,2]
[408594744,1773909132415,660.96353484,9.677e-05,2]
[408594745,1773909132464,660.96353484,9.677e-05,2]
[408594746,1773909132511,660.96353484,9.677e-05,2]
[408594747,1773909132548,660.96353484,9.677e-05,2]
[408594748,1773909132592,660.96353484,9.677e-05,2]
[408594749,1773909132638,660.96353484,9.677e-05,2]
[408594750,1773909132679,235.5569774,9.677e-05,2]
[408594751,1773909132708,425.40655744,9.677e-05,2]
[408594752,1773909132742,660.96353484,9.677e-05,2]
[408594753,1773909132806,660.96353484,9.677e-05,2]
[408594754,1773909132855,660.96353484,9.677e-05,2]
[408594755,1773909132920,660.96353484,9.677e-05,2]
[408594756,1773909132961,660.96353484,9.677e-05,2]
[408594757,1773909132997,660.96353484,9.677e-05,2]
[408594758,1773909133038,660.96353484,9.677e-05,2]
[408594759,1773909133095,660.96353484,9.677e-05,2]
[408594760,1773909133133,660.96353484,9.677e-05,2]
[408594761,1773909133172,660.96353484,9.677e-05,2]
[408594762,1773909167363,2964.96809416,9.678e-05,2]
[408594763,1773909167394,10000.01,9.678e-05,2]
[408594764,1773909167421,10000.01,9.678e-05,2]
[408594765,1773909167447,10000.01,9.678e-05,2]
[408594766,1773909249115,-300.0,9.667e-05,2]
[408594767,1773909301233,300.0,9.667e-05,2]
[408594768,1773909301402,1200.0,9.667e-05,2]
[408594769,1773909301537,300.0,9.667e-05,2]
[408594770,1773909307371,316.0,9.667e-05,3]
[408594771,1773909319033,7284.01,9.578e-05,2]
[408594772,1773909339230,-1926.61743367,9.578e-05,2]
[408594773,1773909339344,-722.8955016,9.578e-05,2]
[408594774,1773909339447,-382.099206,9.578e-05,2]
[408594775,1773909378541,-4139.40564127,9.578e-05,2]
[408594776,1773909387524,-1721.19871746,9.578e-05,2]
[408594777,1773909387555,-262.37138817,9.6e-05,2]
[408594779,1773909457580,827.77,9.328e-05,2]
[408594780,1773909475910,5205.09978874,9.578e-05,2]
[408594781,1773909475937,10000.01,9.578e-05,2]
[408594782,1773909475962,10000.01,9.578e-05,2]
[408594783,1773909475987,7769.56591126,9.578e-05,2]
[408594784,1773909501952,2190.39259852,9.578e-05,2]
[408594785,1773909518594,40.05149022,9.578e-05,2]
[408594786,1773909518619,4975.38720978,9.578e-05,2]
[408594796,1773909606619,301.0,9.578e-05,3]
[408594798,1773909785644,788.74,9.203e-05,2]
[408594799,1773909831196,-5000.0,9.623e-05,2]
[408594800,1773909834148,-250.0,9.623e-05,2]
[408594801,1773909834178,-229.0,9.623e-05,2]
[408594802,1773909834207,-1200.0,9.642e-05,2]
[408594803,1773909834241,-1642.01,9.643e-05,2]
[408594804,1773909837333,-3357.99,9.643e-05,2]
[408594805,1773909907319,285.0,9.578e-05,3]
[408594806,1773910017281,742.2918,9.611e-05,2]
[408594807,1773910020674,500.0,9.141e-05,2]
[408594808,1773910076014,1756.7382,9.58e-05,2]
[408594809,1773910076037,1167.4925,9.58e-05,2]
[408594810,1773910088857,1916.66577274,9.66e-05,30]
[408594811,1773910129761,8832.5175,9.568e-05,2]
[408594812,1773910129785,10000.01,9.568e-05,2]
[408594813,1773910129809,10000.01,9.568e-05,2]
[408594814,1773910129832,10000.01,9.568e-05,2]
[408594815,1773910129855,10000.01,9.568e-05,2]
[408594816,1773910129878,10000.01,9.568e-05,2]
[408594817,1773910129904,10000.01,9.568e-05,2]
[408594818,1773910129929,10000.01,9.568e-05,2]
[408594819,1773910129951,10000.01,9.568e-05,2]
[408594847,1773910231452,-300.0,9.567e-05,2]
[408594848,1773910231472,-300.0,9.567e-05,2]
[408594849,1773910231481,-1200.0,9.567e-05,2]
[408594850,1773910231492,-250.0,9.568e-05,2]
[408594851,1773910231503,-38.41628585,9.568e-05,2]
[408594852,1773910231530,-190.58371415,9.568e-05,2]
[408594853,1773910231541,-271.0,9.568e-05,3]
[408594854,1773910231551,-736124.3878335,9.568e-05,2]
[408594855,1773910231564,-105894.10317409,9.568e-05,2]
[408594856,1773910231576,-137934.52986672,9.568e-05,2]
[408594857,1773910231587,-235257.67315674,9.568e-05,2]
[408594858,1773910231600,-1254.41808677,9.568e-05,2]
[408594859,1773910231612,-3682.21918624,9.568e-05,2]
[408594860,1773910231641,-520.49846645,9.568e-05,2]
[408594861,1773910231652,-615.73022702,9.568e-05,2]
[408594862,1773910231669,-4468.41880083,9.568e-05,2]
[408594863,1773910231681,-987.95536,9.568e-05,2]
[408594865,1773910231693,-869.66570832,9.568e-05,2]
[408594867,1773910231706,-2160.8989,9.568e-05,2]
[408594871,1773910237407,-784.37883421,9.568e-05,2]
[408594872,1773910237418,-2673.37420976,9.568e-05,2]
[408594873,1773910237462,-500.0,9.568e-05,2]
[408594874,1773910237516,-3494.11304809,9.568e-05,2]
[408594875,1773910237527,-9014.8566171,9.568e-05,2]
[408594876,1773910237538,-5006.9697285,9.568e-05,2]
[408594877,1773910237549,-13365.29877674,9.568e-05,2]
[408594878,1773910237572,-58246.81513086,9.568e-05,2]
[408594879,1773910237625,-828.73,9.568e-05,2]
[408594880,1773910237683,-4684.82781913,9.568e-05,2]
[408594934,1773910239854,-4201.32,9.568e-05,2]
[408594942,1773910242485,-5130.53064649,9.568e-05,2]
[408594958,1773910245385,-1400.93748989,9.568e-05,2]
[408594959,1773910245439,-1402.9726,9.568e-05,2]
[408594960,1773910245853,-2038.15061476,9.568e-05,2]
[408594961,1773910245876,-11271.13243209,9.568e-05,2]
[408594965,1773910290877,3375.812,9.377e-05,2]
[408594966,1773910291053,161.085,9.377e-05,2]
[408594968,1773910326423,-151.0,9.565e-05,2]
[408594969,1773910326451,-151.0,9.565e-05,2]
[408594970,1773910326477,-300.0,9.567e-05,2]
[408594971,1773910326503,-300.0,9.567e-05,2]
[408594972,1773910326530,-150.0,9.567e-05,2]
[408594973,1773910326972,-181.4764702,9.568e-05,2]
[408594974,1773910332485,-10000.01,9.568e-05,2]
[408594975,1773910335375,-10000.01,9.568e-05,2]
[408594977,1773910379004,2323.32,9.217e-05,2]
[408594978,1773910400360,-200.0,9.5e-05,2]
[408594979,1773910400388,-500.0,9.543e-05,2]
[408594980,1773910400420,-500.0,9.543e-05,2]
[408594981,1773910400448,-500.0,9.543e-05,2]
[408594982,1773910400477,-500.31068947,9.543e-05,2]
[408594983,1773910400504,-500.0,9.543e-05,2]
[408594984,1773910400541,-500.0,9.543e-05,2]
[408594985,1773910400654,-3599.38862106,9.568e-05,2]
[408594986,1773910408104,-10000.01,9.568e-05,2]
[408594987,1773910408227,-10000.01,9.568e-05,2]
[408594988,1773910408337,-10000.01,9.568e-05,2]
[408594989,1773910408469,-10000.01,9.568e-05,2]
[408594990,1773910408570,-10000.01,9.568e-05,2]
[408594991,1773910408696,-10000.01,9.568e-05,2]
[408594992,1773910410509,500.0,9.468e-05,2]
[408594994,1773910413376,-9500.01,9.568e-05,2]
[408594995,1773910567743,500.0,9.468e-05,2]
[408594996,1773910590505,4363.86,8.896e-05,2]
[408594997,1773910595162,636.15,8.896e-05,2]
[408594998,1773910595184,863.85,8.896e-05,2]
[408595005,1773910702407,8501.69,8.905e-05,2]
[408595012,1773910913482,-300.0,9.555e-05,2]
[408595013,1773910913510,-4400.01,9.556e-05,2]
[408595014,1773910913688,-599.99,9.556e-05,2]
[408595015,1773910913716,-1200.0,9.556e-05,2]
[408595016,1773910913745,-300.0,9.556e-05,2]
[408595017,1773910913772,-160.0,9.556e-05,2]
[408595018,1773910913800,-229.0,9.556e-05,2]
[408595019,1773910913828,-300.0,9.556e-05,2]
[408595020,1773910913854,-1200.0,9.557e-05,2]
[408595021,1773910913881,-159.54669736,9.557e-05,2]
[408595022,1773910913912,-500.0,9.557e-05,2]
[408595023,1773910913940,-202.93660528,9.557e-05,2]
[408595024,1773910914065,-297.06339472,9.557e-05,2]
[408595025,1773910914091,-500.0,9.557e-05,2]
[408595026,1773910914118,-500.0,9.557e-05,2]
[408595027,1773910914144,-500.0,9.557e-05,2]
[408595028,1773910914170,-500.0,9.557e-05,2]
[408595029,1773910914196,-500.0,9.557e-05,2]
[408595030,1773910914222,-500.0,9.557e-05,2]
[408595031,1773910914249,-213.19819377,9.557e-05,2]
[408595032,1773910914276,-250.0,9.558e-05,2]
[408595033,1773910914401,-3517.114,9.558e-05,2]
[408595034,1773910914429,-162.617,9.558e-05,2]